bitfinex/quotes_SOLUSD_20240612
["timestamp","ask_amount","ask_price","bid_price","bid_amount"]
[1718160213113,2.4837,148.97,148.95,9.99993456]
[1718160213290,25.0865,149.0,148.95,9.99993456]
[1718160213291,2.4836,148.98,148.95,9.99993456]
[1718160215108,20.12,148.98,148.95,9.99993456]
[1718160215415,2.4838,148.96,148.95,9.99993456]
[1718160218133,2.4838,148.97,148.95,9.99993456]
[1718160220324,20.12,148.97,148.93,9.99993456]
[1718160220513,2.4841,148.95,148.93,9.99993456]
[1718160221119,2.4839,148.96,148.93,9.99993456]
[1718160221500,2.484,148.96,148.93,9.99993456]
[1718160221906,2.484,148.95,148.93,9.99993456]
[1718160222307,2.484,148.95,148.89,10.82791086]
[1718160222308,2.4847,148.91,148.89,10.82791086]
[1718160222514,2.4846,148.92,148.89,10.82791086]
[1718160222714,2.4848,148.9,148.89,10.82791086]
[1718160222927,2.4847,148.91,148.89,10.82791086]
[1718160223327,2.4846,148.92,148.89,10.82791086]
[1718160224325,2.4847,148.91,148.89,10.82791086]
[1718160224828,2.4848,148.9,148.89,10.82791086]
[1718160227645,25.0889,148.93,148.89,10.82791086]
[1718160227811,2.4847,148.91,148.89,10.82791086]
[1718160228010,2.4848,148.9,148.89,10.82791086]
[1718160228436,2.4847,148.91,148.89,10.82791086]
[1718160229328,2.4846,148.92,148.89,10.82791086]
[1718160229929,2.4847,148.91,148.89,10.82791086]
[1718160230141,2.4848,148.9,148.89,10.82791086]
[1718160230309,2.4847,148.91,148.89,10.82791086]
[1718160230917,20.12,148.92,148.89,10.82791086]
[1718160231138,22.6046,148.92,148.89,10.82791086]
[1718160231343,2.4846,148.92,148.89,10.82791086]
[1718160231642,2.4847,148.91,148.89,10.82791086]
[1718160231939,2.4848,148.9,148.89,10.82791086]
[1718160232139,22.6048,148.9,148.89,10.82791086]
[1718160232323,2.4848,148.9,148.89,10.82791086]
[1718160242250,17.3897,148.94,148.89,10.82791086]
[1718160242422,2.4842,148.94,148.93,9.99993456]
[1718160242620,2.4839,148.96,148.93,9.99993456]
[1718160242843,2.4837,148.97,148.95,9.99993456]
[1718160243154,2.4836,148.98,148.93,12.48423456]
[1718160243337,2.4838,148.96,148.93,16.34813456]
[1718160243518,2.4842,148.94,148.93,9.99993456]
[1718160243723,2.4842,148.94,148.91,9.99993456]
[1718160243945,2.4842,148.94,148.91,16.34813456]
[1718160244943,2.4842,148.94,148.93,9.99993456]
[1718160245738,2.4845,148.92,148.91,9.99993456]
[1718160246855,2.4844,148.93,148.91,9.99993456]
[1718160248269,2.4845,148.92,148.91,9.99993456]
[1718160248443,32.6682,148.95,148.91,9.99993456]
[1718160248444,20.12,148.93,148.91,9.99993456]
[1718160249040,2.4845,148.92,148.91,9.99993456]
[1718160249649,22.6045,148.92,148.91,9.99993456]
[1718160250260,2.4842,148.94,148.91,9.99993456]
[1718160250440,2.4842,148.94,148.93,9.99993456]
[1718160255461,2.4839,148.96,148.93,24.13523456]
[1718160255763,2.4842,148.94,148.93,24.13523456]
[1718160256143,2.4842,148.94,148.93,17.57993456]
[1718160256966,2.4842,148.94,148.93,9.99993456]
[1718160257663,2.484,148.96,148.95,9.99993456]
[1718160260683,35.0209,148.99,148.95,9.99993456]
[1718160260860,2.4837,148.97,148.95,17.57993456]
[1718160262081,2.4838,148.96,148.95,9.99993456]
[1718160265267,2.4838,148.97,148.95,9.99993456]
[1718160268009,2.4838,148.96,148.95,9.99993456]
[1718160268308,35.1497,149.0,148.99,9.99993456]
[1718160268309,2.4832,149.0,148.99,9.99993456]
[1718160273004,2.4831,149.01,148.99,9.99993456]
[1718160274104,2.4829,149.02,149.01,9.99993456]
[1718160274901,7.4486,149.02,149.01,9.99993456]
[1718160276385,2.4832,149.0,148.99,9.99993456]
[1718160276574,2.4832,149.0,148.97,13.6364]
[1718160276575,2.4835,148.98,148.97,9.99993456]
[1718160276995,2.4838,148.97,148.96,9.99993456]
[1718160277385,2.4836,148.98,148.96,9.99993456]
[1718160280391,2.4833,149.0,148.98,9.99993456]
[1718160280802,2.4833,148.99,148.98,9.99993456]
[1718160281986,2.4833,149.0,148.98,9.99993456]
[1718160282400,2.4833,148.99,148.98,9.99993456]
[1718160284016,2.4837,148.97,148.96,9.99993456]
[1718160286518,2.4836,148.98,148.96,9.99993456]
[1718160287639,2.4834,148.99,148.96,9.99993456]
[1718160288295,2.4835,148.98,148.96,9.99993456]
[1718160290522,2.4837,148.97,148.96,9.99993456]
[1718160291502,2.4839,148.96,148.92,25.02363456]
[1718160291820,2.4839,148.96,148.92,27.50813456]
[1718160292016,2.4839,148.96,148.94,9.99993456]
[1718160292625,2.484,148.96,148.94,9.99993456]
[1718160293724,2.4842,148.94,148.92,9.99993456]
[1718160294025,2.4842,148.94,148.9,6.6271]
[1718160294026,2.4847,148.91,148.9,9.99993456]
[1718160294329,37.5094,148.94,148.9,9.99993456]
[1718160294330,2.4843,148.94,148.9,9.99993456]
[1718160294493,7.58,148.95,148.92,9.99993456]
[1718160294689,2.4842,148.94,148.92,9.99993456]
[1718160296804,2.4843,148.93,148.92,9.99993456]
[1718160297297,2.4843,148.94,148.92,9.99993456]
[1718160297497,2.4841,148.95,148.92,9.99993456]
[1718160297703,2.4839,148.96,148.92,9.99993456]
[1718160297913,2.4839,148.96,148.94,9.99993456]
[1718160298127,2.4838,148.97,148.94,9.99993456]
[1718160298519,2.4838,148.97,148.94,16.28053456]
[1718160298713,2.4838,148.97,148.96,9.99993456]
[1718160300801,2.4843,148.93,148.92,9.99993456]
[1718160301002,7.4518,148.96,148.92,9.99993456]
[1718160301299,2.484,148.95,148.94,9.99993456]
[1718160302228,2.4838,148.97,148.94,16.34293456]
[1718160302430,2.4838,148.97,148.96,9.99993456]
[1718160302734,2.4833,149.0,148.98,9.99993456]
[1718160302932,2.4827,149.03,149.02,9.99993456]
[1718160303146,10.0643,149.09,149.05,9.99993456]
[1718160303431,2.4818,149.08,149.07,9.99993456]
[1718160303629,2.482,149.07,149.05,16.58533456]
[1718160303935,7.58,149.07,149.03,9.99993456]
[1718160304107,27.7,149.06,149.01,9.99993456]
[1718160304312,2.4828,149.02,149.01,9.99993456]
[1718160305746,2.4819,149.08,149.05,9.99993456]
[1718160305930,2.4815,149.11,149.09,9.99993456]
[1718160306135,2.4808,149.14,149.11,9.99993456]
[1718160306316,2.4807,149.15,149.13,9.99993456]
[1718160306525,158.44603562,149.16,149.15,9.99993456]
[1718160307053,2.4799,149.2,149.17,9.99993456]
[1718160307414,2.4796,149.22,149.17,9.99993456]
[1718160307641,4.9584,149.24,149.17,9.99993456]
[1718160307822,197.51153562,149.25,149.17,9.99993456]
[1718160308137,197.51153562,149.25,149.15,6.2489]
[1718160308138,2.4804,149.17,149.15,9.99993456]
[1718160308314,2.4795,149.22,149.19,9.99993456]
[1718160308721,2.4797,149.21,149.19,9.99993456]
[1718160310020,2.4798,149.2,149.19,9.99993456]
[1718160310350,2.4798,149.2,149.17,9.99993456]
[1718160310517,20.12,149.21,149.15,9.99993456]
[1718160311022,2.4801,149.19,149.17,9.99993456]
[1718160311826,20.12,149.24,149.19,16.26733456]
[1718160312046,2.4796,149.22,149.21,9.99993456]
[1718160312725,2.4796,149.22,149.19,9.99993456]
[1718160313322,2.4797,149.21,149.19,9.99993456]
[1718160314041,2.4798,149.2,149.19,9.99993456]
[1718160314463,2.4798,149.2,149.16,16.19943456]
[1718160314647,25.0795,149.21,149.16,9.99993456]
[1718160314828,4.9595,149.21,149.16,9.99993456]
[1718160315031,2.4801,149.19,149.18,9.99993456]
[1718160315544,2.4797,149.21,149.18,9.99993456]
[1718160315931,2.4797,149.21,149.2,9.99993456]
[1718160316358,2.4793,149.24,149.22,9.99993456]
[1718160317037,2.4793,149.23,149.22,9.99993456]
[1718160317232,2.4792,149.24,149.22,9.99993456]
[1718160317551,158.44603562,149.25,149.22,16.25393456]
[1718160317848,158.44603562,149.25,149.24,9.99993456]
[1718160318149,2.4793,149.24,149.22,16.25393456]
[1718160318447,2.4793,149.24,149.22,9.99993456]
[1718160318655,2.4793,149.23,149.22,9.99993456]
[1718160320153,2.4797,149.21,149.2,9.99993456]
[1718160323670,32.5196,149.2,149.13,15.5498]
[1718160323844,2.4804,149.17,149.13,15.5498]
[1718160324036,2.4799,149.2,149.14,6.6248]
[1718160324237,14.8759,149.24,149.16,16.62473456]
[1718160324446,2.4801,149.19,149.16,16.62473456]
[1718160324651,12.398,149.22,149.13,28.03063456]
[1718160324852,2.4802,149.18,149.14,6.6248]
[1718160325057,2.4801,149.19,149.16,9.99993456]
[1718160325382,2.4801,149.19,149.14,12.48073456]
[1718160325680,2.4801,149.19,149.16,9.99993456]
[1718160325864,2.4803,149.17,149.16,9.99993456]
[1718160326041,20.12,149.2,149.09,4.9633]
[1718160326042,2.4806,149.16,149.12,16.39063456]
[1718160326242,2.4803,149.17,149.12,18.87173456]
[1718160326540,2.4803,149.17,149.13,8.7047]
[1718160326756,2.4802,149.18,149.13,8.7047]
[1718160327142,2.4802,149.18,149.16,9.99993456]
[1718160327462,2.4802,149.18,149.13,18.70463456]
[1718160327656,4.959,149.23,149.17,9.99993456]
[1718160327841,4.9591,149.22,149.17,9.99993456]
[1718160328040,2.4802,149.19,149.17,9.99993456]
[1718160328240,2.4802,149.18,149.17,9.99993456]
[1718160330365,4.9596,149.21,149.17,9.99993456]
[1718160330568,2.48,149.19,149.17,9.99993456]
[1718160330748,2.4799,149.2,149.17,9.99993456]
[1718160330951,2.4797,149.21,149.17,9.99993456]
[1718160331553,20.12,149.24,149.19,9.99993456]
[1718160331867,20.12,149.24,149.18,6.4715]
[1718160331868,2.4795,149.22,149.18,6.4715]
[1718160332387,2.4795,149.22,149.2,9.99993456]
[1718160332880,2.4797,149.21,149.2,9.99993456]
[1718160333543,158.44603562,149.25,149.2,16.32723456]
[1718160333974,2.4793,149.24,149.2,6.3273]
[1718160334142,2.4793,149.24,149.21,16.58673456]
[1718160334342,2.4793,149.24,149.23,9.99993456]
[1718160334581,160.92503562,149.25,149.21,16.58673456]
[1718160334781,160.92503562,149.25,149.22,6.3555]
[1718160335152,160.92503562,149.25,149.24,9.99993456]
[1718160335791,20.12,149.29,149.24,9.99993456]
[1718160336077,20.12,149.29,149.23,2.4793]
[1718160336078,20.12,149.3,149.22,18.83483456]
[1718160336244,2.4788,149.27,149.22,12.47933456]
[1718160336449,2.4788,149.27,149.25,16.53753456]
[1718160336848,4.9568,149.29,149.25,16.53753456]
[1718160336849,2.4784,149.29,149.25,16.53753456]
[1718160337150,2.4783,149.3,149.25,12.47883456]
[1718160337351,2.4783,149.3,149.26,6.2287]
[1718160337549,2.4781,149.31,149.27,9.99993456]
[1718160337749,27.5528,149.34,149.27,9.99993456]
[1718160337750,20.12,149.34,149.27,9.99993456]
[1718160337977,2.4779,149.32,149.28,6.2287]
[1718160338140,2.4779,149.32,149.28,16.22863456]
[1718160338346,2.4779,149.32,149.28,6.2287]
[1718160338755,2.478,149.31,149.28,6.2287]
[1718160338976,2.478,149.31,149.29,9.99993456]
[1718160339754,25.0753,149.34,149.25,0.17]
[1718160339755,2.4784,149.29,149.27,9.99993456]
[1718160340276,2.4782,149.3,149.27,9.99993456]
[1718160340661,2.4782,149.3,149.27,16.53493456]
[1718160341072,12.3888,149.33,149.29,9.99993456]
[1718160341073,2.4781,149.31,149.29,9.99993456]
[1718160341250,2.4782,149.3,149.29,9.99993456]
[1718160342369,2.4791,149.25,149.22,9.99993456]
[1718160342551,7.4352,149.29,149.2,9.99993456]
[1718160342552,20.12,149.26,149.2,9.99993456]
[1718160342753,7.4377,149.24,149.18,9.99993456]
[1718160343056,20.12,149.24,149.18,16.28793456]
[1718160343260,2.4796,149.22,149.18,6.288]
[1718160343974,2.4796,149.22,149.18,16.28793456]
[1718160344176,25.0787,149.24,149.15,16.1149]
[1718160344377,17.3573,149.22,149.16,9.99993456]
[1718160344554,4.9595,149.21,149.16,9.99993456]
[1718160344950,2.4803,149.18,149.15,22.7795]
[1718160345151,2.4805,149.17,149.13,6.6646]
[1718160345979,12.3972,149.23,149.12,21.82733063]
[1718160346181,2.4796,149.22,149.17,9.99993456]
[1718160346383,2.4796,149.22,149.19,9.99993456]
[1718160346848,2.4797,149.21,149.2,9.99993456]
[1718160347051,12.3955,149.25,149.16,9.1032]
[1718160347052,2.4799,149.2,149.18,9.99993456]
[1718160347283,2.4801,149.19,149.16,16.62273456]
[1718160347676,2.4799,149.2,149.16,16.62273456]
[1718160348055,2.4799,149.2,149.18,9.99993456]
[1718160348255,2.4797,149.21,149.18,9.99993456]
[1718160348567,2.4799,149.2,149.18,9.99993456]
[1718160349675,4.959,149.23,149.18,9.99993456]
[1718160349676,2.4797,149.21,149.18,9.99993456]
[1718160349863,2.4796,149.22,149.18,9.99993456]
[1718160350051,15.61698824,149.28,149.18,9.99993456]
[1718160350052,2.4794,149.23,149.18,9.99993456]
[1718160350258,4.9575,149.27,149.22,9.99993456]
[1718160350567,2.4794,149.23,149.2,6.0739]
[1718160350976,2.4795,149.22,149.2,16.07383456]
[1718160352668,2.4792,149.24,149.22,9.99993456]
[1718160352876,2.4792,149.24,149.2,6.0739]
[1718160353498,2.4792,149.24,149.21,9.99993456]
[1718160354173,20.12,149.27,149.2,6.0739]
[1718160354365,4.9587,149.24,149.18,25.19683456]
[1718160354673,2.4792,149.24,149.19,2.4799]
[1718160354872,30.0355,149.27,149.2,19.04473456]
[1718160354873,2.4791,149.25,149.2,19.04473456]
[1718160355181,2.4791,149.25,149.21,6.565]
[1718160355370,2.4791,149.25,149.22,9.99993456]
[1718160356873,2.4792,149.24,149.22,9.99993456]
[1718160357392,2.4793,149.23,149.21,6.565]
[1718160358603,20.12,149.26,149.2,9.99993456]
[1718160358806,2.4796,149.22,149.2,9.99993456]
[1718160359503,4.9584,149.24,149.2,9.99993456]
[1718160359698,2.4796,149.22,149.2,9.99993456]
[1718160360329,2.4797,149.21,149.2,9.99993456]
[1718160360527,0.17,149.25,149.18,9.99993456]
[1718160360725,2.4806,149.16,149.14,15.6048]
[1718160361026,15.3654,149.24,149.18,9.99993456]
[1718160361027,12.3966,149.24,149.18,9.99993456]
[1718160361215,4.9588,149.23,149.18,9.99993456]
[1718160361537,2.4799,149.2,149.18,9.99993456]
[1718160361736,2.4798,149.21,149.18,9.99993456]
[1718160362109,2.4798,149.2,149.18,9.99993456]
[1718160362513,2.4796,149.22,149.18,16.65013456]
[1718160362719,2.4798,149.21,149.18,16.65013456]
[1718160362921,30.0375,149.23,149.18,9.99993456]
[1718160363120,2.48,149.19,149.18,9.99993456]
[1718160364126,12.3989,149.21,149.16,9.99993456]
[1718160364311,2.4803,149.17,149.16,9.99993456]
[1718160364512,2.4802,149.18,149.16,9.99993456]
[1718160364710,2.4804,149.17,149.14,32.25493456]
[1718160364918,2.4803,149.18,149.14,32.25493456]
[1718160366637,2.4803,149.18,149.14,34.73573456]
[1718160366932,2.4801,149.19,149.16,9.99993456]
[1718160367519,9.9175,149.24,149.16,19.06513456]
[1718160367715,9.9175,149.24,149.17,6.5848]
[1718160367716,2.4799,149.2,149.17,6.5848]
[1718160367915,2.48,149.19,149.17,6.5848]
[1718160368126,2.48,149.19,149.16,9.99993456]
[1718160368334,2.4804,149.17,149.14,31.75313456]
[1718160368519,2.4802,149.18,149.16,9.99993456]
[1718160368834,2.4802,149.18,149.15,6.1484]
[1718160369240,2.4802,149.18,149.16,9.99993456]
[1718160369553,2.4803,149.17,149.16,9.99993456]
[1718160370212,4.9598,149.2,149.16,9.99993456]
[1718160370213,2.4803,149.18,149.16,9.99993456]
[1718160372044,2.4798,149.21,149.16,12.48043456]
[1718160372346,2.4798,149.2,149.17,6.0121]
[1718160373144,2.4798,149.2,149.18,9.99993456]
[1718160374448,2.4796,149.22,149.18,16.02273456]
[1718160374634,2.4794,149.23,149.2,16.02273456]
[1718160374953,2.4794,149.23,149.22,9.99993456]
[1718160375847,2.4797,149.21,149.2,6.0228]
[1718160377536,2.4796,149.22,149.21,9.99993456]
[1718160377836,2.4798,149.2,149.19,9.99993456]
[1718160378945,2.4804,149.17,149.15,9.99993456]
[1718160379141,2.4805,149.16,149.15,16.01123456]
[1718160379347,2.4804,149.17,149.15,16.01123456]
[1718160379529,2.4802,149.18,149.15,16.01123456]
[1718160379735,4.9596,149.21,149.16,6.0113]
[1718160379937,2.4803,149.17,149.15,9.99993456]
[1718160380255,2.4804,149.17,149.15,9.99993456]
[1718160380741,7.4392,149.21,149.15,9.99993456]
[1718160380742,2.4802,149.18,149.15,9.99993456]
[1718160381249,20.12,149.2,149.14,15.6048]
[1718160381468,20.12,149.2,149.11,12.48123456]
[1718160381469,2.4807,149.15,149.11,12.48123456]
[1718160381742,2.4806,149.16,149.11,12.48123456]
[1718160381923,2.4806,149.16,149.12,6.0449]
[1718160382122,2.4806,149.16,149.13,6.0449]
[1718160382530,9.9195,149.21,149.14,6.1829]
[1718160382734,2.4805,149.17,149.14,6.1829]
[1718160382941,2.4805,149.16,149.14,6.1829]
[1718160383145,7.4402,149.19,149.14,9.99993456]
[1718160383352,100.0,149.23,149.1,26.17233456]
[1718160383353,2.481,149.13,149.1,26.17233456]
[1718160383525,4.9613,149.16,149.1,26.17233456]
[1718160383526,2.4812,149.12,149.1,26.17233456]
[1718160383731,2.4808,149.15,149.12,6.309]
[1718160383935,2.4807,149.16,149.12,6.309]
[1718160384157,2.4807,149.15,149.12,16.30893456]
[1718160384332,2.4809,149.14,149.12,16.30893456]
[1718160385250,4.9608,149.17,149.1,9.99993456]
[1718160385251,0.17,149.16,149.1,9.99993456]
[1718160385442,2.4813,149.11,149.1,9.99993456]
[1718160386750,2.4813,149.12,149.1,9.99993456]
[1718160388323,2.4813,149.11,149.1,9.99993456]
[1718160388729,2.4817,149.09,149.08,9.99993456]
[1718160388930,2.4817,149.09,149.06,16.17193456]
[1718160389233,2.4817,149.09,149.08,9.99993456]
[1718160389852,4.9624,149.12,149.06,6.172]
[1718160389853,32.5262,149.12,149.06,6.172]
[1718160390160,32.5262,149.12,149.04,26.22723456]
[1718160390161,20.12,149.11,149.04,16.2273]
[1718160390456,2.4822,149.06,149.02,9.99993456]
[1718160390630,2.4822,149.06,149.04,9.99993456]
[1718160390830,2.4821,149.07,149.06,9.99993456]
[1718160391030,4.9638,149.08,149.03,6.1435]
[1718160391246,2.4824,149.05,149.02,9.99993456]
[1718160391442,4.9638,149.08,149.02,9.99993456]
[1718160391443,2.4827,149.03,149.02,9.99993456]
[1718160392440,2.4829,149.02,148.98,15.74112987]
[1718160392743,2.4827,149.03,148.98,15.74112987]
[1718160392946,2.4827,149.03,148.98,18.91563456]
[1718160393141,27.5673,149.05,148.98,16.43213456]
[1718160393447,2.4832,149.01,148.98,16.43213456]
[1718160393640,2.4833,148.99,148.96,26.34643456]
[1718160393842,2.483,149.01,148.96,35.16823456]
[1718160394039,2.4829,149.02,148.97,8.8217]
[1718160394252,7.4477,149.04,148.97,6.338]
[1718160394456,2.4831,149.01,148.97,6.338]
[1718160394668,4.9654,149.03,148.98,9.99993456]
[1718160394965,2.4833,149.0,148.98,9.99993456]
[1718160395133,20.14,148.99,148.93,9.99993456]
[1718160395336,2.4839,148.96,148.91,16.63233456]
[1718160395556,2.4839,148.96,148.92,6.6324]
[1718160395957,2.4842,148.94,148.93,9.99993456]
[1718160396182,2.4837,148.97,148.93,9.99993456]
[1718160396555,2.4839,148.96,148.93,9.99993456]
[1718160396757,2.484,148.95,148.93,9.99993456]
[1718160397288,2.4842,148.94,148.93,9.99993456]
[1718160397591,2.4841,148.95,148.93,9.99993456]
[1718160397957,2.4839,148.96,148.93,9.99993456]
[1718160398682,24.847,148.91,148.9,9.99993456]
[1718160398854,24.847,148.91,148.89,0.8279763]
[1718160398855,4.9694,148.91,148.89,0.8279763]
[1718160399056,4.9682,148.95,148.9,9.99993456]
[1718160399272,2.4847,148.91,148.9,9.99993456]
[1718160400156,2.4848,148.9,148.89,0.8279763]
[1718160400358,2.4848,148.9,148.89,10.82791086]
[1718160401862,22.6248,148.9,148.89,0.8279763]
[1718160402275,2.4848,148.9,148.89,0.8279763]
[1718160402985,22.6248,148.9,148.89,0.8279763]
[1718160403283,2.4848,148.9,148.89,0.8279763]
[1718160405988,20.14,148.95,148.89,10.82791086]
[1718160406285,20.14,148.93,148.89,10.82791086]
[1718160406466,2.4848,148.9,148.89,10.82791086]
[1718160406666,2.4848,148.9,148.89,0.8279763]
[1718160407066,7.4545,148.9,148.89,0.8279763]
[1718160407387,2.4848,148.9,148.89,0.8279763]
[1718160408477,2.4848,148.9,148.89,10.82791086]
[1718160410605,2.4848,148.9,148.89,0.8279763]
[1718160411283,2.4848,148.9,148.89,10.82791086]
[1718160412165,2.4847,148.91,148.89,10.82791086]
[1718160412369,7.4524,148.95,148.89,10.82791086]
[1718160412370,6.5266,148.96,148.89,0.8279763]
[1718160412601,2.4848,148.9,148.89,0.8279763]
[1718160412808,2.4848,148.9,148.89,10.82791086]
[1718160412974,2.4847,148.91,148.89,10.82791086]
[1718160413312,2.4848,148.9,148.89,10.82791086]
[1718160415687,2.4847,148.91,148.89,10.82791086]
[1718160416705,2.4845,148.93,148.89,10.82791086]
[1718160416887,2.4845,148.93,148.91,9.99993456]
[1718160418890,2.4842,148.94,148.93,9.99993456]
[1718160419094,2.4839,148.96,148.95,9.99993456]
[1718160419610,2.4837,148.97,148.95,9.99993456]
[1718160419898,2.4837,148.97,148.93,9.99993456]
[1718160419899,7.4515,148.97,148.93,9.99993456]
[1718160420196,16.0881,149.01,148.93,16.02803456]
[1718160420197,9.9333,149.0,148.93,16.02803456]
[1718160420394,2.484,148.95,148.93,16.02803456]
[1718160420774,2.4842,148.94,148.93,9.99993456]
[1718160420979,9.9364,148.95,148.89,17.20041086]
[1718160421181,4.9686,148.94,148.89,17.20041086]
[1718160421493,9.9364,148.95,148.89,17.20041086]
[1718160421706,9.9364,148.95,148.91,9.99993456]
[1718160422087,32.5564,149.0,148.94,9.99993456]
[1718160422418,32.5564,149.0,148.92,9.99993456]
[1718160422419,0.17,148.98,148.92,9.99993456]
[1718160422715,2.4843,148.93,148.92,9.99993456]
[1718160423083,2.4847,148.91,148.9,9.99993456]
[1718160423305,24.847,148.91,148.9,9.99993456]
[1718160423518,14.9082,148.91,148.9,9.99993456]
[1718160423681,2.4847,148.91,148.9,9.99993456]
[1718160424784,2.4845,148.93,148.9,9.99993456]
[1718160424989,2.4845,148.93,148.9,16.18023456]
[1718160425409,2.4846,148.92,148.9,16.18023456]
[1718160425601,2.4847,148.91,148.9,16.18023456]
[1718160425805,2.4847,148.91,148.9,9.99993456]
[1718160426617,4.9674,148.97,148.9,16.14213456]
[1718160426822,2.4837,148.97,148.94,9.99993456]
[1718160427034,4.967,148.99,148.94,9.99993456]
[1718160427328,2.484,148.95,148.94,9.99993456]
[1718160427697,2.4839,148.96,148.94,9.99993456]
[1718160428124,2.4843,148.93,148.92,9.99993456]
[1718160434608,2.4842,148.94,148.92,9.99993456]
[1718160434910,25.1075,148.97,148.94,9.99993456]
[1718160434911,2.484,148.95,148.94,9.99993456]
[1718160435799,7.4521,148.95,148.94,9.99993456]
[1718160435999,2.4843,148.93,148.92,9.99993456]
[1718160436215,7.453,148.93,148.92,9.99993456]
[1718160436418,2.4847,148.91,148.9,9.99993456]
[1718160438232,24.847,148.91,148.9,9.99993456]
[1718160438410,14.9091,148.9,148.89,0.8279763]
[1718160438611,7.4545,148.9,148.89,0.8279763]
[1718160438816,2.4848,148.9,148.89,0.8279763]
[1718160440232,7.4545,148.9,148.89,0.8279763]
[1718160441543,7.456,148.87,148.86,9.99993456]
[1718160442519,2.4857,148.85,148.84,9.99993456]
[1718160444136,2.4855,148.86,148.84,9.99993456]
[1718160444512,2.4857,148.85,148.84,9.49993456]
[1718160444812,7.4571,148.85,148.84,9.49993456]
[1718160445436,2.4857,148.85,148.84,9.49993456]
[1718160445945,2.4856,148.86,148.84,9.49993456]
[1718160446130,16.1631,148.88,148.84,9.49993456]
[1718160446328,2.4857,148.85,148.84,9.49993456]
[1718160447440,4.9702,148.89,148.84,9.49993456]
[1718160447621,4.9702,148.89,148.87,9.49993456]
[1718160447827,4.9702,148.89,148.85,9.49993456]
[1718160447828,2.4854,148.87,148.85,9.49993456]
[1718160448242,15.5864,148.92,148.85,9.49993456]
[1718160448243,7.4532,148.93,148.87,9.49993456]
[1718160448445,2.4851,148.89,148.87,9.49993456]
[1718160449025,2.4849,148.9,148.89,9.49993456]
[1718160449221,2.4849,148.9,148.85,9.0055]
[1718160449222,2.4849,148.9,148.87,9.49993456]
[1718160449448,4.9691,148.92,148.87,9.49993456]
[1718160449449,2.4852,148.88,148.87,9.49993456]
[1718160450731,7.4556,148.88,148.87,9.49993456]
[1718160451542,2.4851,148.89,148.87,9.49993456]
[1718160451727,5.40411513,148.94,148.89,9.49993456]
[1718160451951,2.4844,148.93,148.89,9.49993456]
[1718160452246,23.0383,148.96,148.89,9.49993456]
[1718160452247,15.5864,148.96,148.89,9.49993456]
[1718160452629,35.7264,148.96,148.92,9.49993456]
[1718160452824,41.0009515,148.96,148.92,9.49993456]
[1718160453025,41.0009515,148.96,148.89,9.49993456]
[1718160453432,41.0009515,148.96,148.91,9.49993456]
[1718160454326,20.14,148.94,148.89,9.49993456]
[1718160454653,0.34,148.93,148.87,9.49993456]
[1718160455050,0.34,148.93,148.88,2.86221555]
[1718160455868,20.48,148.93,148.88,2.86221555]
[1718160456473,20.48,148.93,148.89,9.49993456]
[1718160456770,20.14,148.95,148.89,9.49993456]
[1718160457271,20.14,148.95,148.91,9.49993456]
[1718160457645,20.14,148.95,148.89,9.49993456]
[1718160457963,20.14,148.95,148.9,0.76334364]
[1718160458347,0.51,148.94,148.9,0.76334364]
[1718160458772,0.51,148.94,148.89,9.49993456]
[1718160460352,20.14,148.93,148.89,9.49993456]
[1718160461476,20.14,148.93,148.87,9.49993456]
[1718160461649,27.0926,148.92,148.87,9.49993456]
[1718160461980,20.31,148.92,148.87,9.49993456]
[1718160462268,20.31,148.92,148.88,0.49543277]
[1718160462765,0.17,148.92,148.88,0.49543277]
[1718160462971,0.51,148.93,148.88,0.49543277]
[1718160463146,0.17,148.92,148.88,0.49543277]
[1718160465051,20.14,148.9,148.88,0.49543277]
[1718160465772,20.14,148.9,148.85,9.49993456]
[1718160466076,26.5782,148.9,148.85,9.49993456]
[1718160466647,0.34,148.89,148.85,9.49993456]
[1718160468474,6.7782,148.89,148.85,9.49993456]
[1718160468774,0.17,148.87,148.83,9.49993456]
[1718160469076,0.51,148.87,148.83,9.49993456]